[Event "Late-Titled-Tuesday-Blitz-April-23-2024"]
[Site "Chess.com"]
[Date "2024.04.23"]
[Round "5"]
[White "TheFireChess"]
[Black "Bryanl106"]
[Result "0-1"]
[WhiteElo "2416"]
[BlackElo "2686"]
[TimeControl "180+1"]
[EndTime "14:55:39 PDT"]
[Termination "Bryanl106 won on time"]

1. e4 {[%clk 0:03:00]} 1... e5 {[%clk 0:02:58.9]} 2. d4 {[%clk 0:02:53.8]} 2...
exd4 {[%clk 0:02:57.2]} 3. Qxd4 {[%clk 0:02:52.7]} 3... Nc6 {[%clk 0:02:57.2]}
4. Qe3 {[%clk 0:02:52]} 4... Nf6 {[%clk 0:02:57.9]} 5. Bd2 {[%clk 0:02:52.2]}
5... Bb4 {[%clk 0:02:58.3]} 6. c4 {[%clk 0:02:51.9]} 6... O-O {[%clk 0:02:53.4]}
7. Bd3 {[%clk 0:02:49.2]} 7... Re8 {[%clk 0:02:45.9]} 8. Ne2 {[%clk 0:02:45.5]}
8... d5 {[%clk 0:02:45.7]} 9. cxd5 {[%clk 0:02:41.7]} 9... Nxd5 {[%clk
0:02:43.8]} 10. Qg3 {[%clk 0:02:27.6]} 10... Bxd2+ {[%clk 0:02:36.8]} 11. Nxd2
{[%clk 0:02:25.5]} 11... Ndb4 {[%clk 0:02:36.8]} 12. Bb1 {[%clk 0:02:19.6]}
12... Ne5 {[%clk 0:02:19]} 13. Nf4 {[%clk 0:02:07.1]} 13... Bg4 {[%clk
0:02:08.5]} 14. h3 {[%clk 0:02:03.6]} 14... Be6 {[%clk 0:02:07.1]} 15. a3 {[%clk
0:01:57.3]} 15... Nbc6 {[%clk 0:02:04.1]} 16. Nf3 {[%clk 0:01:33.8]} 16... Bc4
{[%clk 0:02:00.5]} 17. Nxe5 {[%clk 0:01:29.5]} 17... Nxe5 {[%clk 0:02:01.4]} 18.
b3 {[%clk 0:01:27.5]} 18... Ba6 {[%clk 0:01:59.8]} 19. Qc3 {[%clk 0:01:04.8]}
19... Qf6 {[%clk 0:01:51.3]} 20. Nd5 {[%clk 0:01:00.4]} 20... Qd6 {[%clk
0:01:43.7]} 21. Qxc7 {[%clk 0:00:49.7]} 21... Qg6 {[%clk 0:00:46.5]} 22. Ne7+
{[%clk 0:00:26.2]} 22... Rxe7 {[%clk 0:00:44.3]} 23. Qxe7 {[%clk 0:00:27.1]}
23... Qxg2 {[%clk 0:00:42.6]} 24. Bc2 {[%clk 0:00:01.9]} 24... Nf3+ {[%clk
0:00:40.4]} 0-1

[Event "Late-Titled-Tuesday-Blitz-April-23-2024"]
[Site "Chess.com"]
[Date "2024.04.23"]
[Round "5"]
[White "MarcoRiehle"]
[Black "SerGo055"]
[Result "1-0"]
[WhiteElo "2804"]
[BlackElo "2606"]
[TimeControl "180+1"]
[EndTime "14:55:43 PDT"]
[Termination "MarcoRiehle won by resignation"]

1. e4 {[%clk 0:02:59.7]} 1... d5 {[%clk 0:02:58.7]} 2. exd5 {[%clk 0:02:59.7]}
2... Qxd5 {[%clk 0:02:59.2]} 3. Nc3 {[%clk 0:03:00.3]} 3... Qd8 {[%clk
0:02:59.6]} 4. d4 {[%clk 0:03:01.2]} 4... Nf6 {[%clk 0:02:58.7]} 5. Nf3 {[%clk
0:03:01.8]} 5... g6 {[%clk 0:02:57.8]} 6. Bc4 {[%clk 0:03:02.1]} 6... Bg7 {[%clk
0:02:58.2]} 7. Qe2 {[%clk 0:03:00.3]} 7... O-O {[%clk 0:02:57.9]} 8. Bg5 {[%clk
0:03:00.2]} 8... a6 {[%clk 0:02:56.8]} 9. O-O-O {[%clk 0:02:59.7]} 9... b5
{[%clk 0:02:57]} 10. Bb3 {[%clk 0:03:00.3]} 10... Bb7 {[%clk 0:02:57]} 11. h4
{[%clk 0:03:00]} 11... h5 {[%clk 0:02:53.8]} 12. Ne5 {[%clk 0:02:57.5]} 12... e6
{[%clk 0:02:51.9]} 13. g4 {[%clk 0:02:51.8]} 13... Bxh1 {[%clk 0:02:42.2]} 14.
Rxh1 {[%clk 0:02:50.1]} 14... Qxd4 {[%clk 0:02:33.2]} 15. Rd1 {[%clk 0:02:47.8]}
15... Qc5 {[%clk 0:02:29.5]} 16. f4 {[%clk 0:02:44.4]} 16... Nxg4 {[%clk
0:02:26.2]} 17. Nxg4 {[%clk 0:02:44.4]} 17... hxg4 {[%clk 0:02:26.2]} 18. Ne4
{[%clk 0:02:40.9]} 18... Qf5 {[%clk 0:02:17.6]} 19. Ng3 {[%clk 0:02:34.6]} 19...
Qc5 {[%clk 0:02:14.5]} 20. Ne4 {[%clk 0:02:27.5]} 20... Qf5 {[%clk 0:02:06.5]}
21. Ng3 {[%clk 0:02:20.7]} 21... Qc5 {[%clk 0:02:05.6]} 22. h5 {[%clk
0:02:12.9]} 22... gxh5 {[%clk 0:01:53.3]} 23. Nxh5 {[%clk 0:02:13.8]} 23... Qf5
{[%clk 0:01:49.6]} 24. Rg1 {[%clk 0:02:05.2]} 24... Nc6 {[%clk 0:01:46.2]} 25.
Nxg7 {[%clk 0:02:00.1]} 25... Kxg7 {[%clk 0:01:29.4]} 26. Rxg4 {[%clk
0:01:51.2]} 26... Nd4 {[%clk 0:00:36.5]} 27. Be7+ {[%clk 0:01:36.4]} 27... Kh6
{[%clk 0:00:26.3]} 28. Rh4+ {[%clk 0:01:32.1]} 28... Kg7 {[%clk 0:00:22.2]} 29.
Qg2+ {[%clk 0:01:29.7]} 29... Qg6 {[%clk 0:00:22.1]} 30. Rg4 {[%clk 0:01:30.2]}
30... Rh8 {[%clk 0:00:12.4]} 31. Rxg6+ {[%clk 0:01:21.6]} 31... fxg6 {[%clk
0:00:13.3]} 32. Qe4 {[%clk 0:01:22.4]} 32... Nf5 {[%clk 0:00:07.5]} 33. Bb4
{[%clk 0:01:19.7]} 33... Rae8 {[%clk 0:00:07.2]} 34. Bc3+ {[%clk 0:01:19.2]}
34... e5 {[%clk 0:00:07.8]} 35. Bxe5+ {[%clk 0:01:13.7]} 1-0

[Event "Late-Titled-Tuesday-Blitz-April-23-2024"]
[Site "Chess.com"]
[Date "2024.04.23"]
[Round "5"]
[White "kai_nov"]
[Black "manmanlai1"]
[Result "0-1"]
[WhiteElo "2272"]
[BlackElo "2526"]
[TimeControl "180+1"]
[EndTime "14:55:43 PDT"]
[Termination "manmanlai1 won on time"]

1. d4 {[%clk 0:03:00.9]} 1... Nf6 {[%clk 0:02:59.5]} 2. c4 {[%clk 0:03:00]} 2...
c5 {[%clk 0:02:59.7]} 3. d5 {[%clk 0:03:00]} 3... e6 {[%clk 0:03:00.1]} 4. Nc3
{[%clk 0:02:59.5]} 4... exd5 {[%clk 0:03:00.5]} 5. cxd5 {[%clk 0:03:00.4]} 5...
g6 {[%clk 0:03:00.2]} 6. e4 {[%clk 0:02:59.3]} 6... d6 {[%clk 0:03:00.4]} 7. f3
{[%clk 0:02:58.8]} 7... Bg7 {[%clk 0:02:58.9]} 8. Bg5 {[%clk 0:02:58.9]} 8...
O-O {[%clk 0:02:57.6]} 9. Qd2 {[%clk 0:02:59.1]} 9... Qb6 {[%clk 0:02:51.6]} 10.
a4 {[%clk 0:02:54.4]} 10... Nh5 {[%clk 0:02:50.3]} 11. g4 {[%clk 0:02:25.7]}
11... Nf6 {[%clk 0:02:46.7]} 12. h4 {[%clk 0:02:25.9]} 12... Na6 {[%clk
0:02:41.3]} 13. h5 {[%clk 0:02:24.9]} 13... Nb4 {[%clk 0:02:39.5]} 14. Nge2
{[%clk 0:02:03.3]} 14... Re8 {[%clk 0:02:32.8]} 15. Ng3 {[%clk 0:01:57.3]} 15...
Nxg4 {[%clk 0:02:20.8]} 16. fxg4 {[%clk 0:01:51.6]} 16... Bxg4 {[%clk 0:02:21]}
17. Be2 {[%clk 0:01:27.1]} 17... Bxe2 {[%clk 0:02:18.5]} 18. Ngxe2 {[%clk
0:01:24.8]} 18... c4 {[%clk 0:02:18]} 19. Be3 {[%clk 0:00:44.9]} 19... Qa5
{[%clk 0:02:06.2]} 20. O-O {[%clk 0:00:27]} 20... Re5 {[%clk 0:01:59]} 21. h6
{[%clk 0:00:24]} 21... Bh8 {[%clk 0:01:53.2]} 22. Ng3 {[%clk 0:00:20]} 22... Nd3
{[%clk 0:01:48.8]} 23. Kg2 {[%clk 0:00:16.1]} 23... Rae8 {[%clk 0:01:47.2]} 24.
Rf3 {[%clk 0:00:12.1]} 24... R5e7 {[%clk 0:01:25.2]} 25. Raf1 {[%clk 0:00:11.9]}
25... Nxb2 {[%clk 0:01:25.2]} 26. Bd4 {[%clk 0:00:09.4]} 26... Nd3 {[%clk
0:01:18.1]} 27. Bxh8 {[%clk 0:00:09.1]} 27... Kxh8 {[%clk 0:01:18.8]} 28. Rxf7
{[%clk 0:00:08.3]} 28... Rxf7 {[%clk 0:01:14.7]} 29. Rxf7 {[%clk 0:00:09.2]}
29... Qd8 {[%clk 0:01:13.6]} 30. Qe3 {[%clk 0:00:07.1]} 30... Qh4 {[%clk
0:01:10.3]} 31. Qd4+ {[%clk 0:00:04.6]} 31... Ne5 {[%clk 0:01:10.7]} 32. Rxb7
{[%clk 0:00:02.5]} 32... Rf8 {[%clk 0:01:02.3]} 33. Nce2 {[%clk 0:00:02.5]}
33... Qxh6 {[%clk 0:01:00]} 0-1

[Event "Late-Titled-Tuesday-Blitz-April-23-2024"]
[Site "Chess.com"]
[Date "2024.04.23"]
[Round "5"]
[White "MarkoPe"]
[Black "Sesleria"]
[Result "1-0"]
[WhiteElo "2404"]
[BlackElo "2139"]
[TimeControl "180+1"]
[EndTime "14:55:44 PDT"]
[Termination "MarkoPe won by resignation"]

1. d4 {[%clk 0:03:00]} 1... d5 {[%clk 0:02:59.4]} 2. g3 {[%clk 0:03:00.9]} 2...
Nf6 {[%clk 0:02:57.5]} 3. Bg2 {[%clk 0:03:01]} 3... Bf5 {[%clk 0:02:57.7]} 4.
Nf3 {[%clk 0:03:01.5]} 4... e6 {[%clk 0:02:58.1]} 5. O-O {[%clk 0:03:02.1]} 5...
h6 {[%clk 0:02:58.5]} 6. c4 {[%clk 0:03:02.6]} 6... c6 {[%clk 0:02:58.4]} 7. Nc3
{[%clk 0:03:03.2]} 7... Bd6 {[%clk 0:02:55.7]} 8. b3 {[%clk 0:03:03.5]} 8...
Nbd7 {[%clk 0:02:55.5]} 9. Bb2 {[%clk 0:03:04]} 9... O-O {[%clk 0:02:55.5]} 10.
Re1 {[%clk 0:03:04.5]} 10... Ne4 {[%clk 0:02:55]} 11. Nh4 {[%clk 0:02:59.7]}
11... Nxc3 {[%clk 0:02:54.7]} 12. Bxc3 {[%clk 0:03:00.5]} 12... Bh7 {[%clk
0:02:54.3]} 13. e4 {[%clk 0:03:00.3]} 13... dxe4 {[%clk 0:02:53.7]} 14. Bxe4
{[%clk 0:03:01.2]} 14... Bxe4 {[%clk 0:02:51.6]} 15. Rxe4 {[%clk 0:03:02.1]}
15... c5 {[%clk 0:02:11.5]} 16. Nf3 {[%clk 0:02:52.6]} 16... Nf6 {[%clk
0:02:08.2]} 17. Re1 {[%clk 0:02:50.3]} 17... cxd4 {[%clk 0:02:08.1]} 18. Nxd4
{[%clk 0:02:49.8]} 18... Rc8 {[%clk 0:01:56.4]} 19. Nb5 {[%clk 0:02:42.6]} 19...
Bc5 {[%clk 0:01:55.3]} 20. Kg2 {[%clk 0:02:40.5]} 20... a6 {[%clk 0:01:53.6]}
21. Nd4 {[%clk 0:02:29.8]} 21... Qc7 {[%clk 0:01:49.7]} 22. Qe2 {[%clk
0:02:25.7]} 22... Rfd8 {[%clk 0:01:48]} 23. Rad1 {[%clk 0:02:25.8]} 23... Qb6
{[%clk 0:01:33]} 24. Nf3 {[%clk 0:02:18.7]} 24... Qc6 {[%clk 0:01:31.8]} 25. h3
{[%clk 0:02:06.8]} 25... Be7 {[%clk 0:01:23.3]} 26. Kg1 {[%clk 0:02:02.2]} 26...
b5 {[%clk 0:01:18.7]} 27. Ne5 {[%clk 0:02:01.9]} 27... Qb7 {[%clk 0:01:16]} 28.
Rxd8+ {[%clk 0:00:54.8]} 28... Bxd8 {[%clk 0:01:08.6]} 29. Rd1 {[%clk
0:00:44.2]} 29... bxc4 {[%clk 0:01:05.2]} 30. Nxc4 {[%clk 0:00:45.1]} 30... Nd5
{[%clk 0:00:49.1]} 31. Ba1 {[%clk 0:00:38.1]} 31... Bf6 {[%clk 0:00:32.2]} 32.
Nd6 {[%clk 0:00:35.5]} 32... Nc3 {[%clk 0:00:27.3]} 33. Bxc3 {[%clk 0:00:33.6]}
1-0

[Event "Late-Titled-Tuesday-Blitz-April-23-2024"]
[Site "Chess.com"]
[Date "2024.04.23"]
[Round "5"]
[White "Korchmar_Vasiliy"]
[Black "LiemLe"]
[Result "0-1"]
[WhiteElo "2708"]
[BlackElo "3056"]
[TimeControl "180+1"]
[EndTime "14:55:49 PDT"]
[Termination "LiemLe won on time"]

1. e4 {[%clk 0:03:00.9]} 1... c6 {[%clk 0:02:59.3]} 2. d4 {[%clk 0:03:00.9]}
2... d5 {[%clk 0:03:00.2]} 3. exd5 {[%clk 0:03:01.4]} 3... cxd5 {[%clk
0:03:01.1]} 4. Bd3 {[%clk 0:03:01.2]} 4... Nc6 {[%clk 0:02:59.4]} 5. c3 {[%clk
0:03:01.5]} 5... e6 {[%clk 0:02:52.5]} 6. Nf3 {[%clk 0:02:57]} 6... Bd6 {[%clk
0:02:52.3]} 7. O-O {[%clk 0:02:56.8]} 7... Nge7 {[%clk 0:02:52.9]} 8. Re1 {[%clk
0:02:45.8]} 8... O-O {[%clk 0:02:52.8]} 9. Nbd2 {[%clk 0:02:31.8]} 9... Ng6
{[%clk 0:02:26]} 10. Nf1 {[%clk 0:02:28.8]} 10... Bd7 {[%clk 0:02:24]} 11. Ng3
{[%clk 0:02:06.3]} 11... Rc8 {[%clk 0:02:17.2]} 12. Ng5 {[%clk 0:02:04]} 12...
Nce7 {[%clk 0:01:37.2]} 13. Qh5 {[%clk 0:01:49]} 13... h6 {[%clk 0:01:37.4]} 14.
Nxf7 {[%clk 0:01:41.4]} 14... Kxf7 {[%clk 0:01:27.5]} 15. Re3 {[%clk 0:01:35.6]}
15... Be8 {[%clk 0:01:23.9]} 16. Qg4 {[%clk 0:01:14.2]} 16... Qd7 {[%clk
0:01:09.9]} 17. Bd2 {[%clk 0:00:42.1]} 17... Bf4 {[%clk 0:00:58.8]} 18. Rf3
{[%clk 0:00:35.3]} 18... e5 {[%clk 0:00:59.2]} 19. Nf5 {[%clk 0:00:06.9]} 19...
Kg8 {[%clk 0:00:59]} 20. dxe5 {[%clk 0:00:04.8]} 20... Bxd2 {[%clk 0:00:48.6]}
21. e6 {[%clk 0:00:05.3]} 21... Qc7 {[%clk 0:00:42.4]} 22. Rg3 {[%clk
0:00:03.1]} 22... Nxf5 {[%clk 0:00:38.3]} 23. Bxf5 {[%clk 0:00:03]} 23... Rf6
{[%clk 0:00:38.1]} 24. e7 {[%clk 0:00:01.9]} 24... Rb8 {[%clk 0:00:37.2]} 25. h4
{[%clk 0:00:02.2]} 25... Qxe7 {[%clk 0:00:34.6]} 26. h5 {[%clk 0:00:01.8]} 26...
Ne5 {[%clk 0:00:33.2]} 0-1

[Event "Late-Titled-Tuesday-Blitz-April-23-2024"]
[Site "Chess.com"]
[Date "2024.04.23"]
[Round "5"]
[White "Veleamater"]
[Black "Horokoskii"]
[Result "1-0"]
[WhiteElo "2440"]
[BlackElo "2174"]
[TimeControl "180+1"]
[EndTime "14:55:50 PDT"]
[Termination "Veleamater won by resignation"]

1. g3 {[%clk 0:03:00.9]} 1... Nf6 {[%clk 0:02:46.7]} 2. Bg2 {[%clk 0:03:00.7]}
2... g6 {[%clk 0:02:46.6]} 3. d3 {[%clk 0:03:00.7]} 3... Bg7 {[%clk 0:02:46.7]}
4. Nc3 {[%clk 0:03:01.4]} 4... O-O {[%clk 0:02:46.4]} 5. e4 {[%clk 0:03:01.4]}
5... e5 {[%clk 0:02:44]} 6. f4 {[%clk 0:02:59.5]} 6... exf4 {[%clk 0:02:41.8]}
7. gxf4 {[%clk 0:02:58.4]} 7... d6 {[%clk 0:02:42.4]} 8. Nf3 {[%clk 0:02:57.2]}
8... Nc6 {[%clk 0:02:42.7]} 9. O-O {[%clk 0:02:56.5]} 9... Bg4 {[%clk
0:02:42.1]} 10. Be3 {[%clk 0:02:56.5]} 10... Re8 {[%clk 0:02:37.1]} 11. Qd2
{[%clk 0:02:56.3]} 11... Bxf3 {[%clk 0:02:28]} 12. Rxf3 {[%clk 0:02:55.5]} 12...
Ng4 {[%clk 0:02:26.1]} 13. Kh1 {[%clk 0:02:45.4]} 13... Nxe3 {[%clk 0:02:23.6]}
14. Rxe3 {[%clk 0:02:43.5]} 14... Qf6 {[%clk 0:02:17.9]} 15. Rg3 {[%clk
0:02:41.9]} 15... Ne7 {[%clk 0:02:08.5]} 16. Rf1 {[%clk 0:02:39.5]} 16... c6
{[%clk 0:02:06.4]} 17. Nd1 {[%clk 0:02:31.1]} 17... Bh6 {[%clk 0:02:04.5]} 18.
Rgf3 {[%clk 0:02:27.8]} 18... Rad8 {[%clk 0:01:58.4]} 19. Qf2 {[%clk 0:02:26.7]}
19... a6 {[%clk 0:01:52.8]} 20. h4 {[%clk 0:02:17.1]} 20... Rf8 {[%clk 0:01:44]}
21. Bh3 {[%clk 0:02:16]} 21... d5 {[%clk 0:01:38.1]} 22. e5 {[%clk 0:02:15.2]}
22... Qg7 {[%clk 0:01:38.2]} 23. Rg3 {[%clk 0:02:10.1]} 23... Kh8 {[%clk
0:01:36.7]} 24. Rfg1 {[%clk 0:02:05.2]} 24... f6 {[%clk 0:01:24.3]} 25. d4
{[%clk 0:02:02.5]} 25... fxe5 {[%clk 0:01:23.2]} 26. dxe5 {[%clk 0:01:58.1]}
26... Nf5 {[%clk 0:01:23.3]} 27. Rf3 {[%clk 0:01:55.6]} 27... d4 {[%clk
0:00:55.4]} 28. h5 {[%clk 0:01:44.6]} 28... Rd5 {[%clk 0:00:52.6]} 29. hxg6
{[%clk 0:01:43.4]} 29... hxg6 {[%clk 0:00:52.2]} 30. Rg4 {[%clk 0:01:35.2]}
30... Ne3 {[%clk 0:00:50.7]} 31. Nxe3 {[%clk 0:01:32.7]} 31... dxe3 {[%clk
0:00:50.8]} 32. Qxe3 {[%clk 0:01:29.9]} 32... Rxe5 {[%clk 0:00:49.7]} 33. Qf2
{[%clk 0:01:26.1]} 33... Rh5 {[%clk 0:00:43.8]} 34. Kg2 {[%clk 0:01:25.8]} 34...
Qxb2 {[%clk 0:00:39.3]} 35. Rxg6 {[%clk 0:01:25.5]} 35... Rg8 {[%clk 0:00:35.3]}
36. Rxg8+ {[%clk 0:01:24.2]} 36... Kxg8 {[%clk 0:00:36.2]} 37. Be6+ {[%clk
0:01:18.3]} 37... Kh8 {[%clk 0:00:30.7]} 38. Qd2 {[%clk 0:01:15]} 38... Qg7+
{[%clk 0:00:27.4]} 39. Rg3 {[%clk 0:01:14.7]} 39... Qe7 {[%clk 0:00:20.2]} 40.
Rg8+ {[%clk 0:00:56.9]} 40... Kh7 {[%clk 0:00:19.6]} 41. Qd3+ {[%clk 0:00:56.5]}
1-0

[Event "Late-Titled-Tuesday-Blitz-April-23-2024"]
[Site "Chess.com"]
[Date "2024.04.23"]
[Round "5"]
[White "Sargsyan_Shant"]
[Black "amanmuhammethommadov"]
[Result "1/2-1/2"]
[WhiteElo "2970"]
[BlackElo "2726"]
[TimeControl "180+1"]
[EndTime "14:55:51 PDT"]
[Termination "Game drawn by repetition"]

1. c4 {[%clk 0:03:00.2]} 1... Nf6 {[%clk 0:02:59.5]} 2. g3 {[%clk 0:03:00.7]}
2... g6 {[%clk 0:02:59.8]} 3. Bg2 {[%clk 0:03:01.2]} 3... Bg7 {[%clk 0:03:00.3]}
4. Nc3 {[%clk 0:03:02.1]} 4... O-O {[%clk 0:03:00.7]} 5. d3 {[%clk 0:03:03]}
5... d6 {[%clk 0:03:00.6]} 6. Nf3 {[%clk 0:03:03.6]} 6... c5 {[%clk 0:03:01.1]}
7. Rb1 {[%clk 0:03:04.3]} 7... Nc6 {[%clk 0:03:02]} 8. a3 {[%clk 0:03:04.8]}
8... a6 {[%clk 0:02:59.7]} 9. b4 {[%clk 0:03:04.1]} 9... cxb4 {[%clk 0:03:00]}
10. axb4 {[%clk 0:03:05]} 10... b5 {[%clk 0:02:57.5]} 11. Nd2 {[%clk 0:02:58.8]}
11... Bd7 {[%clk 0:02:55.8]} 12. cxb5 {[%clk 0:02:58.9]} 12... axb5 {[%clk
0:02:56.7]} 13. Nxb5 {[%clk 0:02:59.2]} 13... Rb8 {[%clk 0:02:56.1]} 14. Nc3
{[%clk 0:02:57.3]} 14... Nxb4 {[%clk 0:02:50.5]} 15. O-O {[%clk 0:02:55.5]}
15... Qc7 {[%clk 0:02:50.7]} 16. Bb2 {[%clk 0:02:46.1]} 16... Rfc8 {[%clk
0:02:48]} 17. Nce4 {[%clk 0:02:30.8]} 17... Nxe4 {[%clk 0:02:40.1]} 18. Nxe4
{[%clk 0:02:31.7]} 18... d5 {[%clk 0:02:23.2]} 19. Bxg7 {[%clk 0:02:26.6]} 19...
Kxg7 {[%clk 0:02:24.1]} 20. Ng5 {[%clk 0:02:23]} 20... e6 {[%clk 0:02:09.3]} 21.
Qd2 {[%clk 0:02:20.4]} 21... Qc3 {[%clk 0:01:54.1]} 22. Qf4 {[%clk 0:02:18]}
22... f6 {[%clk 0:01:32.8]} 23. Nf3 {[%clk 0:01:59.6]} 23... e5 {[%clk
0:01:32.8]} 24. Qh4 {[%clk 0:01:58.4]} 24... Nc2 {[%clk 0:01:25.7]} 25. Rbc1
{[%clk 0:01:52.3]} 25... Qb4 {[%clk 0:01:15.9]} 26. Qxb4 {[%clk 0:01:38.1]}
26... Rxb4 {[%clk 0:01:16.8]} 27. Rfd1 {[%clk 0:01:30.7]} 27... Rbb8 {[%clk
0:01:13]} 28. Nd2 {[%clk 0:01:26.4]} 28... Nd4 {[%clk 0:01:12]} 29. Bf1 {[%clk
0:01:15.5]} 29... Kf7 {[%clk 0:01:04.8]} 30. e3 {[%clk 0:01:12.5]} 30... Nc2
{[%clk 0:00:59.7]} 31. Bg2 {[%clk 0:01:10.2]} 31... Be6 {[%clk 0:00:59.7]} 32.
Rb1 {[%clk 0:01:05.9]} 32... Nb4 {[%clk 0:00:57.2]} 33. Nb3 {[%clk 0:01:01.6]}
33... Ke7 {[%clk 0:00:56.1]} 34. h4 {[%clk 0:00:56.2]} 34... Na2 {[%clk
0:00:50]} 35. Na5 {[%clk 0:00:46.6]} 35... Kd6 {[%clk 0:00:46.7]} 36. Nb7+
{[%clk 0:00:39.5]} 36... Ke7 {[%clk 0:00:43.6]} 37. Na5 {[%clk 0:00:39.6]} 37...
Kd6 {[%clk 0:00:43.7]} 38. Nb7+ {[%clk 0:00:33.6]} 38... Ke7 {[%clk 0:00:44]}
39. Na5 {[%clk 0:00:32.1]} 1/2-1/2

[Event "Late-Titled-Tuesday-Blitz-April-23-2024"]
[Site "Chess.com"]
[Date "2024.04.23"]
[Round "5"]
[White "ChadBiryani"]
[Black "ansko1999"]
[Result "1-0"]
[WhiteElo "2466"]
[BlackElo "2589"]
[TimeControl "180+1"]
[EndTime "14:55:51 PDT"]
[Termination "ChadBiryani won by checkmate"]

1. c4 {[%clk 0:02:53.9]} 1... Nf6 {[%clk 0:02:58.4]} 2. g3 {[%clk 0:02:50.3]}
2... e6 {[%clk 0:02:55.7]} 3. Bg2 {[%clk 0:02:50.4]} 3... d5 {[%clk 0:02:56]} 4.
Nf3 {[%clk 0:02:44.9]} 4... Be7 {[%clk 0:02:55.1]} 5. O-O {[%clk 0:02:45]} 5...
O-O {[%clk 0:02:55.7]} 6. b3 {[%clk 0:02:45.5]} 6... c5 {[%clk 0:02:55.3]} 7.
cxd5 {[%clk 0:02:45.3]} 7... Nxd5 {[%clk 0:02:51.8]} 8. Bb2 {[%clk 0:02:44.8]}
8... Bf6 {[%clk 0:02:41.4]} 9. d4 {[%clk 0:02:37.5]} 9... Nc6 {[%clk 0:02:38.1]}
10. e4 {[%clk 0:02:35.1]} 10... Ndb4 {[%clk 0:02:31.8]} 11. e5 {[%clk
0:02:32.1]} 11... Be7 {[%clk 0:02:31.9]} 12. a3 {[%clk 0:02:30.2]} 12... Nd5
{[%clk 0:02:31]} 13. Re1 {[%clk 0:02:20.1]} 13... b6 {[%clk 0:02:29.5]} 14. Nbd2
{[%clk 0:02:16.2]} 14... Nxd4 {[%clk 0:02:22.5]} 15. Nxd4 {[%clk 0:02:15.3]}
15... cxd4 {[%clk 0:02:23.4]} 16. Bxd4 {[%clk 0:02:10]} 16... Bb7 {[%clk
0:02:23.4]} 17. Nc4 {[%clk 0:02:07]} 17... Rc8 {[%clk 0:02:18.5]} 18. Rc1 {[%clk
0:01:54.7]} 18... b5 {[%clk 0:02:12.2]} 19. Nd6 {[%clk 0:01:54.2]} 19... Bxd6
{[%clk 0:01:59.4]} 20. exd6 {[%clk 0:01:55.1]} 20... Qxd6 {[%clk 0:01:38.4]} 21.
b4 {[%clk 0:01:46.1]} 21... Rxc1 {[%clk 0:01:34.6]} 22. Qxc1 {[%clk 0:01:46]}
22... Rc8 {[%clk 0:01:24]} 23. Qg5 {[%clk 0:01:38]} 23... f6 {[%clk 0:01:21.7]}
24. Bxf6 {[%clk 0:01:32.4]} 24... Nxf6 {[%clk 0:01:14.3]} 25. Bxb7 {[%clk
0:01:32.3]} 25... Rc3 {[%clk 0:00:50.3]} 26. Qxb5 {[%clk 0:01:19.5]} 26... Rxa3
{[%clk 0:00:48.5]} 27. Bg2 {[%clk 0:01:13.5]} 27... h6 {[%clk 0:00:37.5]} 28.
Bh3 {[%clk 0:01:12.5]} 28... e5 {[%clk 0:00:32.4]} 29. Rxe5 {[%clk 0:00:59.2]}
29... Qd1+ {[%clk 0:00:29.3]} 30. Qf1 {[%clk 0:00:49.1]} 30... Qd4 {[%clk
0:00:25]} 31. Qe2 {[%clk 0:00:49.2]} 31... Ra1+ {[%clk 0:00:22.6]} 32. Kg2
{[%clk 0:00:48.7]} 32... Qxb4 {[%clk 0:00:18.3]} 33. Re8+ {[%clk 0:00:43.5]}
33... Nxe8 {[%clk 0:00:12.3]} 34. Qxe8+ {[%clk 0:00:42.5]} 34... Kh7 {[%clk
0:00:09.9]} 35. Bf5+ {[%clk 0:00:41.8]} 35... g6 {[%clk 0:00:09.1]} 36. Qxg6+
{[%clk 0:00:42.3]} 36... Kh8 {[%clk 0:00:09.6]} 37. Qh7# {[%clk 0:00:43.2]} 1-0

[Event "Late-Titled-Tuesday-Blitz-April-23-2024"]
[Site "Chess.com"]
[Date "2024.04.23"]
[Round "5"]
[White "KebabJangles"]
[Black "Kratos031"]
[Result "1-0"]
[WhiteElo "2240"]
[BlackElo "2469"]
[TimeControl "180+1"]
[EndTime "14:55:54 PDT"]
[Termination "KebabJangles won by resignation"]

1. d4 {[%clk 0:03:00.9]} 1... Nf6 {[%clk 0:02:54.7]} 2. c4 {[%clk 0:03:00.6]}
2... e6 {[%clk 0:02:53.4]} 3. Nf3 {[%clk 0:02:58]} 3... Bb4+ {[%clk 0:02:53.2]}
4. Nbd2 {[%clk 0:02:56.9]} 4... a5 {[%clk 0:02:53.4]} 5. a3 {[%clk 0:02:56.7]}
5... Be7 {[%clk 0:02:52.7]} 6. e4 {[%clk 0:02:55.3]} 6... d5 {[%clk 0:02:35.6]}
7. e5 {[%clk 0:02:54.1]} 7... Ne4 {[%clk 0:02:35.1]} 8. Bd3 {[%clk 0:02:52.6]}
8... Nxd2 {[%clk 0:02:31.1]} 9. Bxd2 {[%clk 0:02:53.5]} 9... c5 {[%clk
0:02:29.4]} 10. cxd5 {[%clk 0:02:37.3]} 10... exd5 {[%clk 0:02:28.3]} 11. O-O
{[%clk 0:02:36.7]} 11... c4 {[%clk 0:02:23.7]} 12. Bc2 {[%clk 0:02:34.6]} 12...
Nc6 {[%clk 0:02:22]} 13. Be3 {[%clk 0:02:24.5]} 13... Bg4 {[%clk 0:02:18.8]} 14.
h3 {[%clk 0:02:24.1]} 14... Bh5 {[%clk 0:02:17.5]} 15. g4 {[%clk 0:02:24]} 15...
Bg6 {[%clk 0:02:17.5]} 16. Nh2 {[%clk 0:02:24]} 16... Qb6 {[%clk 0:02:10.7]} 17.
Nf3 {[%clk 0:02:11.6]} 17... O-O {[%clk 0:02:04.1]} 18. Rb1 {[%clk 0:02:09.8]}
18... a4 {[%clk 0:01:52.5]} 19. Ne1 {[%clk 0:02:01.1]} 19... Rfd8 {[%clk
0:01:50.8]} 20. f4 {[%clk 0:02:00.5]} 20... Be4 {[%clk 0:01:47.5]} 21. Qd2
{[%clk 0:01:51]} 21... Bxc2 {[%clk 0:01:30.8]} 22. Nxc2 {[%clk 0:01:48.3]} 22...
Qb3 {[%clk 0:01:30]} 23. Qc3 {[%clk 0:01:46.7]} 23... b5 {[%clk 0:01:15.5]} 24.
Bd2 {[%clk 0:01:44.3]} 24... Rab8 {[%clk 0:00:58.6]} 25. Nb4 {[%clk 0:01:27.8]}
25... Nxb4 {[%clk 0:00:46.2]} 26. axb4 {[%clk 0:01:27.8]} 26... Ra8 {[%clk
0:00:43]} 27. Ra1 {[%clk 0:01:25.9]} 27... Ra7 {[%clk 0:00:37.4]} 28. Ra3 {[%clk
0:01:25.7]} 28... Qxc3 {[%clk 0:00:37.3]} 29. Bxc3 {[%clk 0:01:22.3]} 29... Rc8
{[%clk 0:00:37.1]} 30. f5 {[%clk 0:01:20.9]} 30... Bg5 {[%clk 0:00:37]} 31. Kf2
{[%clk 0:01:19.7]} 31... Re7 {[%clk 0:00:36.3]} 32. Kf3 {[%clk 0:01:18.9]} 32...
Rce8 {[%clk 0:00:36.5]} 33. Re1 {[%clk 0:01:16.7]} 33... h6 {[%clk 0:00:36.5]}
34. Kg3 {[%clk 0:01:15.3]} 34... Kh7 {[%clk 0:00:35.9]} 35. h4 {[%clk
0:01:15.5]} 35... Bf6 {[%clk 0:00:34.8]} 36. Raa1 {[%clk 0:01:11.6]} 36... Bxe5+
{[%clk 0:00:29.4]} 37. Rxe5 {[%clk 0:01:09.9]} 37... Rxe5 {[%clk 0:00:28.9]} 38.
dxe5 {[%clk 0:01:09.7]} 38... Rd8 {[%clk 0:00:29.6]} 39. Bd4 {[%clk 0:01:09.7]}
39... Rc8 {[%clk 0:00:29]} 40. Rd1 {[%clk 0:01:04.4]} 40... c3 {[%clk
0:00:28.9]} 41. Bxc3 {[%clk 0:01:01.9]} 41... Rc4 {[%clk 0:00:28.9]} 42. Rxd5
{[%clk 0:01:01.9]} 42... a3 {[%clk 0:00:28.8]} 43. Rxb5 {[%clk 0:00:58.5]} 43...
axb2 {[%clk 0:00:18.7]} 44. Bxb2 {[%clk 0:00:58.4]} 44... Rc2 {[%clk 0:00:19.6]}
45. Bd4 {[%clk 0:00:58.3]} 45... Rd2 {[%clk 0:00:19.9]} 46. Rd5 {[%clk
0:00:54.9]} 46... Rd3+ {[%clk 0:00:20.8]} 47. Kf4 {[%clk 0:00:54.7]} 47... Rb3
{[%clk 0:00:21.7]} 48. b5 {[%clk 0:00:54.7]} 1-0